[Event "Early-Titled-Tuesday-Blitz-March-26-2024"]
[Site "Chess.com"]
[Date "2024.03.26"]
[Round "8"]
[White "WindWhistler11"]
[Black "JAN2404"]
[Result "1-0"]
[WhiteElo "2432"]
[BlackElo "1957"]
[TimeControl "180+1"]
[EndTime "9:24:13 PDT"]
[Termination "WindWhistler11 won by resignation"]

1. Nf3 {[%clk 0:02:56.2]} 1... c5 {[%clk 0:02:58.9]} 2. g3 {[%clk 0:02:55.6]}
2... g6 {[%clk 0:02:57.8]} 3. Bg2 {[%clk 0:02:52.4]} 3... Bg7 {[%clk 0:02:58]}
4. c4 {[%clk 0:02:47.7]} 4... Nf6 {[%clk 0:02:55.2]} 5. O-O {[%clk 0:02:47.1]}
5... O-O {[%clk 0:02:53.7]} 6. d4 {[%clk 0:02:47.5]} 6... cxd4 {[%clk
0:02:49.6]} 7. Nxd4 {[%clk 0:02:48.4]} 7... Nc6 {[%clk 0:02:48.9]} 8. Nc2 {[%clk
0:02:43.9]} 8... d6 {[%clk 0:02:45]} 9. Nc3 {[%clk 0:02:38.7]} 9... Be6 {[%clk
0:02:43]} 10. Ne3 {[%clk 0:02:28]} 10... Rc8 {[%clk 0:02:37.2]} 11. b3 {[%clk
0:02:18.1]} 11... Qd7 {[%clk 0:02:25.4]} 12. Bb2 {[%clk 0:01:57.7]} 12... Bh3
{[%clk 0:02:25]} 13. Qd2 {[%clk 0:01:47.8]} 13... Bxg2 {[%clk 0:01:52.1]} 14.
Kxg2 {[%clk 0:01:41.7]} 14... Qe6 {[%clk 0:01:50.9]} 15. Ned5 {[%clk 0:01:35.1]}
15... Nd7 {[%clk 0:01:19.7]} 16. Nf4 {[%clk 0:01:27.3]} 16... Qf6 {[%clk
0:01:06.3]} 17. Rab1 {[%clk 0:01:27.2]} 17... Nde5 {[%clk 0:00:53.4]} 18. Ncd5
{[%clk 0:01:11.4]} 18... Qf5 {[%clk 0:00:53.5]} 19. f3 {[%clk 0:01:01.2]} 19...
g5 {[%clk 0:00:38.2]} 20. Nh5 {[%clk 0:00:56]} 20... e6 {[%clk 0:00:21.8]} 21.
Ne3 {[%clk 0:00:49.9]} 21... Qg6 {[%clk 0:00:21.3]} 22. Nxg7 {[%clk 0:00:48.7]}
22... Kxg7 {[%clk 0:00:20.3]} 23. Qxd6 {[%clk 0:00:49.2]} 23... Qf6 {[%clk
0:00:18.4]} 24. Ng4 {[%clk 0:00:48.3]} 24... Rfd8 {[%clk 0:00:16.6]} 25. Bxe5
{[%clk 0:00:40.1]} 25... Nxe5 {[%clk 0:00:15.9]} 26. Qxe5 {[%clk 0:00:39.8]}
26... Qxe5 {[%clk 0:00:15.9]} 27. Nxe5 {[%clk 0:00:40.7]} 27... Rd2 {[%clk
0:00:16.1]} 28. Rf2 {[%clk 0:00:38.9]} 28... Kf6 {[%clk 0:00:16.6]} 29. Ng4+
{[%clk 0:00:37.8]} 29... Kg6 {[%clk 0:00:16]} 30. e4 {[%clk 0:00:37.5]} 30... f5
{[%clk 0:00:16]} 1-0

[Event "Early-Titled-Tuesday-Blitz-March-26-2024"]
[Site "Chess.com"]
[Date "2024.03.26"]
[Round "8"]
[White "Aslanov_Umid"]
[Black "Philippians46"]
[Result "0-1"]
[WhiteElo "2615"]
[BlackElo "2987"]
[TimeControl "180+1"]
[EndTime "9:24:15 PDT"]
[Termination "Philippians46 won by checkmate"]

1. e4 {[%clk 0:03:00.9]} 1... c5 {[%clk 0:02:59.3]} 2. Nf3 {[%clk 0:03:00.8]}
2... d6 {[%clk 0:02:59.9]} 3. d4 {[%clk 0:03:01.4]} 3... cxd4 {[%clk 0:03:00.8]}
4. Nxd4 {[%clk 0:03:02.3]} 4... Nf6 {[%clk 0:03:00.6]} 5. Nc3 {[%clk 0:03:02.9]}
5... Nc6 {[%clk 0:03:01]} 6. Bc4 {[%clk 0:02:59]} 6... e6 {[%clk 0:03:00.8]} 7.
Be3 {[%clk 0:02:56.7]} 7... Be7 {[%clk 0:03:00.8]} 8. Qe2 {[%clk 0:02:55.2]}
8... Bd7 {[%clk 0:03:01.3]} 9. Bb3 {[%clk 0:02:54.8]} 9... Rc8 {[%clk
0:03:01.6]} 10. O-O-O {[%clk 0:02:53.4]} 10... Na5 {[%clk 0:03:01.4]} 11. f3
{[%clk 0:02:42.8]} 11... a6 {[%clk 0:03:01.2]} 12. g4 {[%clk 0:02:42.5]} 12...
b5 {[%clk 0:03:01.4]} 13. g5 {[%clk 0:02:41.8]} 13... Nh5 {[%clk 0:03:01]} 14.
f4 {[%clk 0:02:41.8]} 14... g6 {[%clk 0:02:59.7]} 15. f5 {[%clk 0:02:35.3]}
15... Bxg5 {[%clk 0:02:52.6]} 16. Bxe6 {[%clk 0:01:49.5]} 16... fxe6 {[%clk
0:02:42]} 17. fxe6 {[%clk 0:01:50.4]} 17... Bc6 {[%clk 0:02:40.9]} 18. Rhg1
{[%clk 0:01:45.2]} 18... Bf4 {[%clk 0:01:59.6]} 19. Bxf4 {[%clk 0:01:35.5]}
19... Nxf4 {[%clk 0:02:00.5]} 20. Qg4 {[%clk 0:01:36.2]} 20... Qf6 {[%clk
0:01:28.8]} 21. e7 {[%clk 0:01:24.5]} 21... Bd7 {[%clk 0:01:18.8]} 22. Qf3
{[%clk 0:01:17.9]} 22... b4 {[%clk 0:01:17.7]} 23. Nf5 {[%clk 0:00:51.9]} 23...
gxf5 {[%clk 0:01:00.9]} 24. Qxf4 {[%clk 0:00:50.9]} 24... bxc3 {[%clk 0:00:57]}
25. Rxd6 {[%clk 0:00:51.3]} 25... cxb2+ {[%clk 0:00:57.4]} 26. Kb1 {[%clk
0:00:51.8]} 26... Qc3 {[%clk 0:00:57.7]} 27. Qd2 {[%clk 0:00:09.4]} 27... Qxd2
{[%clk 0:00:57.4]} 28. Rxd2 {[%clk 0:00:10.3]} 28... Nc4 {[%clk 0:00:58.1]} 29.
Rdg2 {[%clk 0:00:08.6]} 29... fxe4 {[%clk 0:00:58]} 30. Rg7 {[%clk 0:00:08]}
30... e3 {[%clk 0:00:55.4]} 31. Re1 {[%clk 0:00:08.5]} 31... Rb8 {[%clk
0:00:54.1]} 32. a4 {[%clk 0:00:06.9]} 32... Nd2+ {[%clk 0:00:53]} 33. Ka2 {[%clk
0:00:06.5]} 33... Be6+ {[%clk 0:00:53.6]} 34. Ka3 {[%clk 0:00:06.7]} 34... b1=N+
{[%clk 0:00:53.5]} 35. Rxb1 {[%clk 0:00:06.9]} 35... Nxb1# {[%clk 0:00:54.4]}
0-1

[Event "Early-Titled-Tuesday-Blitz-March-26-2024"]
[Site "Chess.com"]
[Date "2024.03.26"]
[Round "8"]
[White "KNVB"]
[Black "Revan_2002"]
[Result "0-1"]
[WhiteElo "2757"]
[BlackElo "2605"]
[TimeControl "180+1"]
[EndTime "9:24:19 PDT"]
[Termination "Revan_2002 won on time"]

1. e4 {[%clk 0:03:00.9]} 1... e5 {[%clk 0:02:58.3]} 2. Nf3 {[%clk 0:02:59.3]}
2... Nc6 {[%clk 0:02:58.9]} 3. Nc3 {[%clk 0:02:59.6]} 3... Nf6 {[%clk
0:02:58.1]} 4. Nd5 {[%clk 0:03:00.2]} 4... Bc5 {[%clk 0:02:34.3]} 5. c3 {[%clk
0:02:59.1]} 5... O-O {[%clk 0:02:21.9]} 6. d4 {[%clk 0:01:29.4]} 6... exd4
{[%clk 0:02:22.8]} 7. cxd4 {[%clk 0:01:29.8]} 7... Nxd5 {[%clk 0:02:15.4]} 8.
dxc5 {[%clk 0:01:27.5]} 8... Nf6 {[%clk 0:02:07.7]} 9. Bd3 {[%clk 0:01:19.5]}
9... Re8 {[%clk 0:01:43.6]} 10. O-O {[%clk 0:01:10.5]} 10... d6 {[%clk
0:01:43.1]} 11. Bg5 {[%clk 0:00:45.5]} 11... h6 {[%clk 0:01:40.1]} 12. Bh4
{[%clk 0:00:45.8]} 12... Bg4 {[%clk 0:01:39.8]} 13. cxd6 {[%clk 0:00:23.9]}
13... Qxd6 {[%clk 0:01:30.3]} 14. Bg3 {[%clk 0:00:23.8]} 14... Qd7 {[%clk
0:01:22.9]} 15. Bb5 {[%clk 0:00:04.7]} 15... Qe6 {[%clk 0:00:59]} 16. Bxc6
{[%clk 0:00:02.1]} 16... Qxc6 {[%clk 0:00:53.1]} 17. Rc1 {[%clk 0:00:02.6]}
17... Qxe4 {[%clk 0:00:52.6]} 18. Rxc7 {[%clk 0:00:03.3]} 18... Rad8 {[%clk
0:00:49.8]} 19. Qb3 {[%clk 0:00:03.7]} 19... Nd5 {[%clk 0:00:26.5]} 20. Rxb7
{[%clk 0:00:03.3]} 20... a5 {[%clk 0:00:26.9]} 21. h3 {[%clk 0:00:01.8]} 21...
a4 {[%clk 0:00:25.7]} 0-1

[Event "Early-Titled-Tuesday-Blitz-March-26-2024"]
[Site "Chess.com"]
[Date "2024.03.26"]
[Round "8"]
[White "rhwr"]
[Black "yonaltimur"]
[Result "0-1"]
[WhiteElo "2316"]
[BlackElo "2407"]
[TimeControl "180+1"]
[EndTime "9:24:19 PDT"]
[Termination "yonaltimur won on time"]

1. e4 {[%clk 0:02:59.6]} 1... c5 {[%clk 0:02:59.7]} 2. Nf3 {[%clk 0:02:59.5]}
2... d6 {[%clk 0:03:00.2]} 3. d4 {[%clk 0:02:59.4]} 3... cxd4 {[%clk 0:03:01.1]}
4. Nxd4 {[%clk 0:02:59.7]} 4... Nf6 {[%clk 0:03:01.8]} 5. Nc3 {[%clk 0:02:59.9]}
5... a6 {[%clk 0:03:02.3]} 6. Be2 {[%clk 0:02:59.8]} 6... e5 {[%clk 0:03:02.3]}
7. Nb3 {[%clk 0:02:59.9]} 7... Be6 {[%clk 0:03:02.9]} 8. O-O {[%clk 0:03:00.4]}
8... Be7 {[%clk 0:03:03.5]} 9. Be3 {[%clk 0:03:00.1]} 9... Nbd7 {[%clk 0:03:04]}
10. a4 {[%clk 0:02:55.3]} 10... O-O {[%clk 0:03:04.3]} 11. h3 {[%clk 0:02:47.6]}
11... Rc8 {[%clk 0:03:01.8]} 12. Kh1 {[%clk 0:02:39.1]} 12... Nb6 {[%clk
0:02:43]} 13. f4 {[%clk 0:02:33]} 13... Nc4 {[%clk 0:02:34.1]} 14. Bc1 {[%clk
0:02:29]} 14... Nb6 {[%clk 0:02:21.1]} 15. f5 {[%clk 0:02:24.7]} 15... Bc4
{[%clk 0:02:20.8]} 16. a5 {[%clk 0:02:20.1]} 16... Nbd7 {[%clk 0:02:14.3]} 17.
g4 {[%clk 0:02:01.2]} 17... h6 {[%clk 0:02:06.7]} 18. g5 {[%clk 0:01:59.6]}
18... hxg5 {[%clk 0:02:07.6]} 19. Bxg5 {[%clk 0:02:00]} 19... Nh7 {[%clk
0:01:52.7]} 20. Be3 {[%clk 0:01:53.5]} 20... Bg5 {[%clk 0:01:50.2]} 21. Bf2
{[%clk 0:01:43.8]} 21... Ndf6 {[%clk 0:01:44]} 22. Rg1 {[%clk 0:01:30]} 22...
Bf4 {[%clk 0:01:38]} 23. Bh4 {[%clk 0:01:21.8]} 23... Qc7 {[%clk 0:01:26.9]} 24.
Bf3 {[%clk 0:01:20.2]} 24... Rfe8 {[%clk 0:01:20.1]} 25. Nd2 {[%clk 0:01:13.2]}
25... d5 {[%clk 0:01:17.2]} 26. Nxc4 {[%clk 0:01:08.2]} 26... dxc4 {[%clk
0:01:13.8]} 27. Qe2 {[%clk 0:01:01.8]} 27... Rcd8 {[%clk 0:01:13.6]} 28. Qg2
{[%clk 0:01:01.1]} 28... Bh6 {[%clk 0:01:13.4]} 29. Rad1 {[%clk 0:00:50.1]}
29... Qxa5 {[%clk 0:01:12.6]} 30. Be2 {[%clk 0:00:28.9]} 30... Rxd1 {[%clk
0:01:11.6]} 31. Rxd1 {[%clk 0:00:26.9]} 31... Qb6 {[%clk 0:01:09.2]} 32. Rg1
{[%clk 0:00:06.3]} 32... Qxb2 {[%clk 0:01:04.7]} 33. Nd5 {[%clk 0:00:03]} 33...
Nxd5 {[%clk 0:01:03.2]} 34. exd5 {[%clk 0:00:03.1]} 34... Qxc2 {[%clk
0:01:01.9]} 35. f6 {[%clk 0:00:03.1]} 35... g6 {[%clk 0:01:02.2]} 0-1

[Event "Early-Titled-Tuesday-Blitz-March-26-2024"]
[Site "Chess.com"]
[Date "2024.03.26"]
[Round "8"]
[White "imdvb6307"]
[Black "KVAIDAN"]
[Result "1-0"]
[WhiteElo "2515"]
[BlackElo "2353"]
[TimeControl "180+1"]
[EndTime "9:24:20 PDT"]
[Termination "imdvb6307 won by resignation"]

1. d4 {[%clk 0:02:42]} 1... e6 {[%clk 0:02:59.6]} 2. Nf3 {[%clk 0:02:41.4]} 2...
f5 {[%clk 0:02:59.4]} 3. g3 {[%clk 0:02:39.2]} 3... Nf6 {[%clk 0:02:59.5]} 4.
Bg2 {[%clk 0:02:39.8]} 4... d6 {[%clk 0:02:59.7]} 5. O-O {[%clk 0:02:39.9]} 5...
Be7 {[%clk 0:02:59.9]} 6. Bf4 {[%clk 0:02:34.9]} 6... O-O {[%clk 0:02:59.2]} 7.
c4 {[%clk 0:02:35.1]} 7... Ne4 {[%clk 0:02:55.2]} 8. h4 {[%clk 0:02:34]} 8...
Nd7 {[%clk 0:02:47.6]} 9. Nbd2 {[%clk 0:02:32.4]} 9... Nxd2 {[%clk 0:02:45.7]}
10. Qxd2 {[%clk 0:02:27.2]} 10... Bf6 {[%clk 0:02:45.5]} 11. Bg5 {[%clk
0:02:26.3]} 11... c6 {[%clk 0:02:41.8]} 12. Rad1 {[%clk 0:02:20.5]} 12... h6
{[%clk 0:02:42]} 13. Bxf6 {[%clk 0:02:20.3]} 13... Qxf6 {[%clk 0:02:42.1]} 14.
Rfe1 {[%clk 0:02:18.2]} 14... e5 {[%clk 0:02:41.8]} 15. dxe5 {[%clk 0:02:17.6]}
15... dxe5 {[%clk 0:02:42]} 16. e4 {[%clk 0:02:15.1]} 16... f4 {[%clk
0:02:38.1]} 17. gxf4 {[%clk 0:02:14.3]} 17... exf4 {[%clk 0:02:38.3]} 18. e5
{[%clk 0:02:14.3]} 18... Qe7 {[%clk 0:02:36.1]} 19. Qd6 {[%clk 0:02:12]} 19...
Qe8 {[%clk 0:02:22.6]} 20. c5 {[%clk 0:02:06]} 20... Qh5 {[%clk 0:01:43.6]} 21.
Qe6+ {[%clk 0:01:48.2]} 21... Kh8 {[%clk 0:01:40.6]} 22. Rxd7 {[%clk 0:01:43.1]}
22... Bxd7 {[%clk 0:01:33.4]} 23. Qxd7 {[%clk 0:01:43.2]} 23... Rf7 {[%clk
0:01:32.3]} 24. Qd6 {[%clk 0:01:37.3]} 24... Re8 {[%clk 0:01:29]} 25. e6 {[%clk
0:01:21.4]} 25... Rf5 {[%clk 0:01:18.3]} 26. Re5 {[%clk 0:01:12.1]} 26... Rxe5
{[%clk 0:01:12.9]} 27. Nxe5 {[%clk 0:01:10.9]} 27... Qf5 {[%clk 0:01:02.5]} 28.
e7 {[%clk 0:00:58.8]} 28... Qf6 {[%clk 0:00:58.6]} 29. Qxf6 {[%clk 0:00:54.6]}
29... gxf6 {[%clk 0:00:58.2]} 30. Ng6+ {[%clk 0:00:55]} 30... Kg7 {[%clk
0:00:58.1]} 31. h5 {[%clk 0:00:55.7]} 31... f5 {[%clk 0:00:58.6]} 32. b4 {[%clk
0:00:47.2]} 32... Kf6 {[%clk 0:00:54.6]} 33. b5 {[%clk 0:00:47.1]} 33... Kg5
{[%clk 0:00:29.7]} 34. bxc6 {[%clk 0:00:45.8]} 34... Kxh5 {[%clk 0:00:30]} 35.
cxb7 {[%clk 0:00:46]} 35... Kxg6 {[%clk 0:00:30.2]} 36. c6 {[%clk 0:00:46.5]}
36... Kf7 {[%clk 0:00:29.6]} 37. c7 {[%clk 0:00:46]} 37... f3 {[%clk 0:00:29.8]}
38. Bxf3 {[%clk 0:00:45.8]} 38... Rxe7 {[%clk 0:00:30.2]} 39. c8=Q {[%clk
0:00:44.4]} 1-0

[Event "Early-Titled-Tuesday-Blitz-March-26-2024"]
[Site "Chess.com"]
[Date "2024.03.26"]
[Round "8"]
[White "AquivaRubinstein"]
[Black "Charodej1"]
[Result "1-0"]
[WhiteElo "2585"]
[BlackElo "2426"]
[TimeControl "180+1"]
[EndTime "9:24:21 PDT"]
[Termination "AquivaRubinstein won by resignation"]

1. d4 {[%clk 0:03:00.9]} 1... e6 {[%clk 0:02:58.5]} 2. c4 {[%clk 0:03:00.8]}
2... Bb4+ {[%clk 0:02:56.3]} 3. Nc3 {[%clk 0:02:59.8]} 3... Nf6 {[%clk
0:02:52.7]} 4. Qb3 {[%clk 0:02:59.7]} 4... c5 {[%clk 0:02:33.8]} 5. dxc5 {[%clk
0:02:59.7]} 5... Na6 {[%clk 0:02:27]} 6. a3 {[%clk 0:02:57.1]} 6... Bxc5 {[%clk
0:02:26.8]} 7. Nf3 {[%clk 0:02:54.4]} 7... O-O {[%clk 0:02:21.7]} 8. Bg5 {[%clk
0:02:54.2]} 8... Be7 {[%clk 0:02:20.3]} 9. e3 {[%clk 0:02:52.1]} 9... h6 {[%clk
0:02:19.3]} 10. Bh4 {[%clk 0:02:51.6]} 10... Qa5 {[%clk 0:02:17.5]} 11. Qb5
{[%clk 0:02:17]} 11... Qxb5 {[%clk 0:02:00.6]} 12. Nxb5 {[%clk 0:02:17.9]} 12...
d5 {[%clk 0:01:39.7]} 13. cxd5 {[%clk 0:02:17.6]} 13... g5 {[%clk 0:01:32.3]}
14. d6 {[%clk 0:02:07.7]} 14... Bd8 {[%clk 0:01:21.6]} 15. Bg3 {[%clk
0:02:03.1]} 15... Ne4 {[%clk 0:01:18]} 16. b4 {[%clk 0:01:49.7]} 16... f5 {[%clk
0:01:15.8]} 17. Be5 {[%clk 0:01:46]} 17... Bd7 {[%clk 0:01:14.6]} 18. Rc1 {[%clk
0:01:42.7]} 18... Bc6 {[%clk 0:00:56]} 19. Nc7 {[%clk 0:01:28.6]} 19... Nxc7
{[%clk 0:00:49.9]} 20. dxc7 {[%clk 0:01:27.3]} 20... Be7 {[%clk 0:00:49]} 21.
Bc4 {[%clk 0:01:19.9]} 21... Kf7 {[%clk 0:00:37]} 22. O-O {[%clk 0:01:16.7]}
22... Rfc8 {[%clk 0:00:27.6]} 23. Nd4 {[%clk 0:01:00.7]} 23... Bd5 {[%clk
0:00:24.5]} 24. Bxd5 {[%clk 0:00:55.5]} 24... exd5 {[%clk 0:00:25.4]} 25. Nxf5
{[%clk 0:00:54.6]} 25... Bf8 {[%clk 0:00:24]} 26. f3 {[%clk 0:00:49.2]} 26...
Nd2 {[%clk 0:00:23.8]} 27. Rfd1 {[%clk 0:00:46.7]} 27... Nc4 {[%clk 0:00:22.5]}
28. Bg3 {[%clk 0:00:43.7]} 28... Ke6 {[%clk 0:00:18.1]} 29. e4 {[%clk
0:00:39.3]} 29... Nb6 {[%clk 0:00:14.4]} 30. Nd4+ {[%clk 0:00:37]} 30... Kf7
{[%clk 0:00:13.9]} 31. e5 {[%clk 0:00:31.9]} 1-0

[Event "Early-Titled-Tuesday-Blitz-March-26-2024"]
[Site "Chess.com"]
[Date "2024.03.26"]
[Round "8"]
[White "rcmz"]
[Black "mertfelin"]
[Result "0-1"]
[WhiteElo "2206"]
[BlackElo "2406"]
[TimeControl "180+1"]
[EndTime "9:24:22 PDT"]
[Termination "mertfelin won on time"]

1. b4 {[%clk 0:03:00.9]} 1... e5 {[%clk 0:02:51.1]} 2. Bb2 {[%clk 0:03:00.2]}
2... Bxb4 {[%clk 0:02:51.9]} 3. Bxe5 {[%clk 0:03:00]} 3... Nf6 {[%clk
0:02:52.2]} 4. c4 {[%clk 0:02:54.6]} 4... O-O {[%clk 0:02:48.8]} 5. Nf3 {[%clk
0:02:52.7]} 5... d5 {[%clk 0:02:48.2]} 6. cxd5 {[%clk 0:02:50.8]} 6... Nxd5
{[%clk 0:02:47.3]} 7. e3 {[%clk 0:02:51.7]} 7... c5 {[%clk 0:02:46.9]} 8. Be2
{[%clk 0:02:50.2]} 8... Bf5 {[%clk 0:02:44.7]} 9. a3 {[%clk 0:02:44.9]} 9... Ba5
{[%clk 0:02:43.5]} 10. O-O {[%clk 0:02:44.5]} 10... Bg6 {[%clk 0:02:42]} 11. d4
{[%clk 0:02:43.1]} 11... Nc6 {[%clk 0:02:41.8]} 12. Bg3 {[%clk 0:02:38.7]} 12...
cxd4 {[%clk 0:02:29.6]} 13. Nxd4 {[%clk 0:02:38]} 13... Nxd4 {[%clk 0:02:29.6]}
14. Qxd4 {[%clk 0:02:37]} 14... Nf6 {[%clk 0:02:28.5]} 15. Qb2 {[%clk
0:02:23.3]} 15... Qe7 {[%clk 0:02:22.2]} 16. Bf3 {[%clk 0:02:17.2]} 16... Ne4
{[%clk 0:02:16.9]} 17. Bxe4 {[%clk 0:02:07.1]} 17... Bxe4 {[%clk 0:02:17]} 18.
Nd2 {[%clk 0:01:42.8]} 18... Bd3 {[%clk 0:02:17.5]} 19. Rfc1 {[%clk 0:01:37.3]}
19... Rac8 {[%clk 0:02:17.2]} 20. Nf3 {[%clk 0:01:36]} 20... h6 {[%clk
0:02:04.4]} 21. Qe5 {[%clk 0:01:28.5]} 21... Qxe5 {[%clk 0:01:57.6]} 22. Nxe5
{[%clk 0:01:27.7]} 22... Ba6 {[%clk 0:01:57.2]} 23. Rab1 {[%clk 0:01:19.8]}
23... Rfd8 {[%clk 0:01:54.3]} 24. Nf3 {[%clk 0:01:17.4]} 24... b6 {[%clk
0:01:45.9]} 25. h3 {[%clk 0:01:15.6]} 25... Rd3 {[%clk 0:01:41.4]} 26. Rxc8+
{[%clk 0:01:10.7]} 26... Bxc8 {[%clk 0:01:41.9]} 27. Ra1 {[%clk 0:00:45.7]}
27... Bd7 {[%clk 0:01:40.6]} 28. Ne5 {[%clk 0:00:43.3]} 28... Rd5 {[%clk
0:01:38.4]} 29. Nxd7 {[%clk 0:00:42.2]} 29... Rxd7 {[%clk 0:01:39.3]} 30. Be5
{[%clk 0:00:40]} 30... Rd3 {[%clk 0:01:39.4]} 31. Bd4 {[%clk 0:00:38.9]} 31...
Kf8 {[%clk 0:01:37.9]} 32. Kf1 {[%clk 0:00:38.1]} 32... Rb3 {[%clk 0:01:37.5]}
33. Ke2 {[%clk 0:00:34.5]} 33... Bc3 {[%clk 0:01:37.6]} 34. Bxc3 {[%clk
0:00:32.6]} 34... Rxc3 {[%clk 0:01:38.5]} 35. Kd2 {[%clk 0:00:32.5]} 35... Rb3
{[%clk 0:01:39.1]} 36. Kc2 {[%clk 0:00:32.6]} 36... Rb5 {[%clk 0:01:39.7]} 37.
Rd1 {[%clk 0:00:31.1]} 37... Ra5 {[%clk 0:01:40.2]} 38. Kb3 {[%clk 0:00:30.5]}
38... Ke7 {[%clk 0:01:40.3]} 39. Rd4 {[%clk 0:00:29.1]} 39... Rg5 {[%clk
0:01:40.6]} 40. g3 {[%clk 0:00:28.3]} 40... Rc5 {[%clk 0:01:41.4]} 41. Kb2
{[%clk 0:00:24]} 41... Rf5 {[%clk 0:01:40.9]} 42. f4 {[%clk 0:00:21]} 42... Rh5
{[%clk 0:01:39.2]} 43. h4 {[%clk 0:00:20.3]} 43... Rb5+ {[%clk 0:01:39.6]} 44.
Kc2 {[%clk 0:00:17.6]} 44... h5 {[%clk 0:01:39.9]} 45. e4 {[%clk 0:00:12.7]}
45... Rc5+ {[%clk 0:01:39.2]} 46. Kb2 {[%clk 0:00:12.1]} 46... g6 {[%clk
0:01:37.2]} 47. Ra4 {[%clk 0:00:06.8]} 47... a5 {[%clk 0:01:36.2]} 48. Rd4
{[%clk 0:00:06.3]} 48... Rb5+ {[%clk 0:01:36.6]} 49. Kc2 {[%clk 0:00:05.6]}
49... Ke6 {[%clk 0:01:35.9]} 50. a4 {[%clk 0:00:01.7]} 50... Rc5+ {[%clk
0:01:35.3]} 51. Kb2 {[%clk 0:00:01.6]} 51... Rc6 {[%clk 0:01:31.3]} 0-1

[Event "Early-Titled-Tuesday-Blitz-March-26-2024"]
[Site "Chess.com"]
[Date "2024.03.26"]
[Round "8"]
[White "Zhigalko_Sergei"]
[Black "InitiatingASC"]
[Result "1-0"]
[WhiteElo "2878"]
[BlackElo "2369"]
[TimeControl "180+1"]
[EndTime "9:24:24 PDT"]
[Termination "Zhigalko_Sergei won on time"]

1. e4 {[%clk 0:03:00.9]} 1... c5 {[%clk 0:02:57.1]} 2. Nf3 {[%clk 0:03:00.9]}
2... Nc6 {[%clk 0:02:56.2]} 3. c3 {[%clk 0:03:00.8]} 3... Nf6 {[%clk 0:02:55.9]}
4. e5 {[%clk 0:03:01.1]} 4... Nd5 {[%clk 0:02:55.8]} 5. Bc4 {[%clk 0:03:01.3]}
5... Nb6 {[%clk 0:02:52.3]} 6. Bb3 {[%clk 0:03:01.6]} 6... c4 {[%clk 0:02:52.5]}
7. Bc2 {[%clk 0:03:01.6]} 7... Qc7 {[%clk 0:02:49.5]} 8. Qe2 {[%clk 0:03:01.8]}
8... g6 {[%clk 0:02:46.1]} 9. O-O {[%clk 0:03:01.2]} 9... Bg7 {[%clk 0:02:46.3]}
10. Re1 {[%clk 0:03:01.7]} 10... O-O {[%clk 0:02:46.1]} 11. Na3 {[%clk
0:03:02.2]} 11... Nd8 {[%clk 0:02:39.9]} 12. b3 {[%clk 0:02:52.2]} 12... cxb3
{[%clk 0:02:36]} 13. axb3 {[%clk 0:02:53.1]} 13... Ne6 {[%clk 0:02:31.7]} 14.
Nb5 {[%clk 0:02:48.4]} 14... Qb8 {[%clk 0:02:30.1]} 15. d4 {[%clk 0:02:48.7]}
15... a6 {[%clk 0:02:24.6]} 16. Na3 {[%clk 0:02:48]} 16... d5 {[%clk 0:02:22.1]}
17. h4 {[%clk 0:02:41.2]} 17... h5 {[%clk 0:02:16.9]} 18. g4 {[%clk 0:02:28.3]}
18... hxg4 {[%clk 0:02:07.1]} 19. Nh2 {[%clk 0:02:26.9]} 19... Qc7 {[%clk
0:01:58.1]} 20. Bd2 {[%clk 0:02:22.6]} 20... f5 {[%clk 0:01:31]} 21. exf6 {[%clk
0:02:16.1]} 21... exf6 {[%clk 0:01:31.3]} 22. Qxg4 {[%clk 0:02:06.5]} 22... Ng5
{[%clk 0:00:52]} 23. Qg2 {[%clk 0:01:44.1]} 23... Bh3 {[%clk 0:00:25]} 24. Qg3
{[%clk 0:01:43.8]} 24... Qxg3+ {[%clk 0:00:21.5]} 25. fxg3 {[%clk 0:01:44]}
25... Ne4 {[%clk 0:00:22.2]} 26. Bxe4 {[%clk 0:01:38.4]} 26... dxe4 {[%clk
0:00:22.3]} 27. Rxe4 {[%clk 0:01:39.3]} 27... Bf5 {[%clk 0:00:20.8]} 28. Re7
{[%clk 0:01:34]} 28... Rf7 {[%clk 0:00:20.9]} 29. Rxf7 {[%clk 0:01:10.1]} 29...
Kxf7 {[%clk 0:00:21.8]} 30. Nc4 {[%clk 0:01:10.7]} 30... Nxc4 {[%clk 0:00:20.5]}
31. bxc4 {[%clk 0:01:11.6]} 31... Bd3 {[%clk 0:00:16.7]} 32. c5 {[%clk
0:01:11.6]} 32... Be4 {[%clk 0:00:16.6]} 33. Ng4 {[%clk 0:01:10.4]} 33... a5
{[%clk 0:00:10.2]} 34. Ne3 {[%clk 0:01:08.7]} 34... a4 {[%clk 0:00:09.7]} 35.
Nc4 {[%clk 0:01:08.6]} 35... Ke6 {[%clk 0:00:06.4]} 36. Nb6 {[%clk 0:01:05.5]}
36... Ra6 {[%clk 0:00:04]} 37. Rxa4 {[%clk 0:01:04.2]} 37... Rxa4 {[%clk
0:00:03.2]} 38. Nxa4 {[%clk 0:01:05.1]} 38... f5 {[%clk 0:00:01.4]} 39. Kf2
{[%clk 0:01:02.2]} 1-0

[Event "Early-Titled-Tuesday-Blitz-March-26-2024"]
[Site "Chess.com"]
[Date "2024.03.26"]
[Round "8"]
[White "Kunalm64"]
[Black "verrbaa"]
[Result "1-0"]
[WhiteElo "2629"]
[BlackElo "2482"]
[TimeControl "180+1"]
[EndTime "9:24:24 PDT"]
[Termination "Kunalm64 won on time"]

1. e4 {[%clk 0:02:58.7]} 1... c5 {[%clk 0:02:59.7]} 2. Nf3 {[%clk 0:02:58.4]}
2... e6 {[%clk 0:03:00.1]} 3. g3 {[%clk 0:02:56.9]} 3... Nc6 {[%clk 0:03:00.1]}
4. Bg2 {[%clk 0:02:56.7]} 4... Nf6 {[%clk 0:02:59.7]} 5. Qe2 {[%clk 0:02:56.1]}
5... d5 {[%clk 0:02:58.8]} 6. exd5 {[%clk 0:02:53]} 6... Nxd5 {[%clk 0:02:58.8]}
7. O-O {[%clk 0:02:52.6]} 7... Be7 {[%clk 0:02:57]} 8. Nc3 {[%clk 0:02:50]} 8...
O-O {[%clk 0:02:42]} 9. Rd1 {[%clk 0:02:49.1]} 9... Nxc3 {[%clk 0:02:12.7]} 10.
dxc3 {[%clk 0:02:47.8]} 10... Qb6 {[%clk 0:02:13.3]} 11. Ne5 {[%clk 0:02:42.4]}
11... Nxe5 {[%clk 0:02:09.5]} 12. Qxe5 {[%clk 0:02:42.4]} 12... f6 {[%clk
0:01:44.5]} 13. Qe2 {[%clk 0:02:37]} 13... e5 {[%clk 0:01:44.5]} 14. Bd5+ {[%clk
0:02:28.3]} 14... Be6 {[%clk 0:01:43]} 15. Qc4 {[%clk 0:02:22]} 15... Bxd5
{[%clk 0:01:42.4]} 16. Rxd5 {[%clk 0:02:21.4]} 16... Kh8 {[%clk 0:01:42.3]} 17.
b3 {[%clk 0:02:17.7]} 17... Qc6 {[%clk 0:01:36.3]} 18. Be3 {[%clk 0:02:16.6]}
18... b5 {[%clk 0:01:28]} 19. Qe4 {[%clk 0:02:13.6]} 19... Rac8 {[%clk
0:01:26.1]} 20. c4 {[%clk 0:02:12.6]} 20... f5 {[%clk 0:01:12.7]} 21. Qd3 {[%clk
0:02:03.7]} 21... e4 {[%clk 0:01:12.5]} 22. Qe2 {[%clk 0:02:03.8]} 22... b4
{[%clk 0:01:05.2]} 23. Rad1 {[%clk 0:02:03.6]} 23... a5 {[%clk 0:01:04.4]} 24.
Qh5 {[%clk 0:01:34]} 24... Qe6 {[%clk 0:01:01.8]} 25. h4 {[%clk 0:01:29]} 25...
a4 {[%clk 0:00:44.5]} 26. Rd7 {[%clk 0:01:25]} 26... axb3 {[%clk 0:00:44.2]} 27.
axb3 {[%clk 0:01:24.6]} 27... Bf6 {[%clk 0:00:35.1]} 28. R1d6 {[%clk 0:01:19.4]}
28... Qe5 {[%clk 0:00:31.4]} 29. Kg2 {[%clk 0:01:17.2]} 29... Qc3 {[%clk
0:00:18.8]} 30. Rf7 {[%clk 0:00:57.5]} 30... Rxf7 {[%clk 0:00:10.6]} 31. Qxf7
{[%clk 0:00:56.8]} 31... Qxc2 {[%clk 0:00:03.2]} 32. Rxf6 {[%clk 0:00:55.6]}
32... gxf6 {[%clk 0:00:02.4]} 33. Qxf6+ {[%clk 0:00:55.8]} 33... Kg8 {[%clk
0:00:02.4]} 34. Qe6+ {[%clk 0:00:55.9]} 34... Kg7 {[%clk 0:00:03.1]} 35. Bh6+
{[%clk 0:00:56]} 1-0